fUST/lending_fUST_20250905
["ID","MTS","AMOUNT","RATE_DAILY","PERIOD"]
[383632732,1757051447758,-480.0,0.00014821,2]
[383632734,1757051447767,-480.0,0.00014821,2]
[383632736,1757051447777,-576.47,0.00014821,2]
[383632738,1757051447786,-480.0,0.00014821,2]
[383632740,1757051447795,-480.0,0.00014821,2]
[383632742,1757051447804,-480.0,0.00014821,2]
[383632744,1757051447813,-480.0,0.00014821,2]
[383632746,1757051447823,-773.89,0.00014821,2]
[383632748,1757051447833,-1543.61,0.00014821,2]
[383632750,1757051447843,-2371.1,0.00014821,2]
[383632752,1757051447853,-894.17,0.00014821,2]
[383632754,1757051447863,-480.0,0.00014821,2]
[383632756,1757051447872,-480.0,0.00014821,2]
[383632758,1757051447883,-5518.58,0.00014821,2]
[383632760,1757051447892,-780.12,0.00014821,2]
[383632762,1757051447902,-2655.15,0.00014821,2]
[383632764,1757051447911,-480.0,0.00014821,2]
[383632766,1757051447920,-592.35,0.00014821,2]
[383632768,1757051447930,-1210.14,0.00014821,2]
[383632770,1757051447940,-480.0,0.00014821,2]
[383632772,1757051447950,-480.0,0.00014821,2]
[383632774,1757051447961,-1154.8,0.00014821,2]
[383632776,1757051447970,-480.0,0.00014821,2]
[383632778,1757051447979,-480.0,0.00014821,2]
[383632780,1757051447988,-480.0,0.00014821,2]
[383632782,1757051447998,-168.0,0.00014824,2]
[383632784,1757051448007,-151.0,0.00014829,2]
[383632786,1757051448017,-185.974912,0.00014829,2]
[383632788,1757051448026,-153.578079,0.00014829,2]
[383632790,1757051448036,-153.578079,0.00014829,2]
[383632792,1757051448045,-153.578079,0.00014829,2]
[383632794,1757051448055,-153.578079,0.00014829,2]
[383632796,1757051448064,-151.0,0.00014829,2]
[383632798,1757051448074,-724.76,0.00014829,2]
[383632800,1757051448083,-1760.72,0.00014829,2]
[383632802,1757051448092,-480.0,0.00014829,2]
[383632804,1757051448101,-489.04128952,0.00014829,2]
[383632806,1757051448111,-1169.84,0.00014829,2]
[383632808,1757051448120,-636.26,0.00014829,2]
[383632810,1757051448130,-636.26,0.00014829,2]
[383632812,1757051448139,-480.0,0.0001483,2]
[383632814,1757051448149,-480.0,0.0001483,2]
[383632816,1757051448157,-480.0,0.0001483,2]
[383632818,1757051448167,-480.0,0.0001483,2]
[383632820,1757051448176,-480.0,0.0001483,2]
[383632822,1757051448185,-610.42752719,0.0001483,2]
[383632824,1757051448194,-480.0,0.0001483,2]
[383632826,1757051448204,-480.0,0.0001483,2]
[383632828,1757051448213,-480.0,0.0001483,2]
[383632830,1757051448222,-151.0,0.0001483,2]
[383632832,1757051448231,-480.0,0.0001483,2]
[383632834,1757051448241,-480.0,0.0001483,2]
[383632836,1757051448250,-1390.56,0.0001483,2]
[383632838,1757051448260,-480.0,0.0001483,2]
[383632840,1757051448270,-480.0,0.0001483,2]
[383632842,1757051448279,-480.0,0.0001483,2]
[383632844,1757051448288,-570.06,0.0001483,2]
[383632846,1757051448297,-480.0,0.0001483,2]
[383632848,1757051448306,-480.0,0.0001483,2]
[383632850,1757051448315,-480.0,0.0001483,2]
[383632852,1757051448325,-480.0,0.0001483,2]
[383632854,1757051448334,-480.0,0.0001483,2]
[383632856,1757051448344,-594.58323345,0.0001483,2]
[383632857,1757051448353,-480.0,0.0001483,2]
[383632858,1757051448362,-480.0,0.0001483,2]
[383632859,1757051448371,-153.578079,0.0001483,2]
[383632860,1757051448381,-153.578079,0.0001483,2]
[383632861,1757051448390,-153.578079,0.0001483,2]
[383632863,1757051448403,-153.578077,0.0001483,2]
[383632865,1757051448412,-480.0,0.0001483,2]
[383632867,1757051448422,-480.0,0.0001483,2]
[383632869,1757051448432,-480.0,0.0001483,2]
[383632871,1757051448442,-213.277159,0.0001483,2]
[383632873,1757051448451,-545.88843035,0.0001483,2]
[383632875,1757051448460,-480.0,0.0001483,2]
[383632877,1757051448469,-480.0,0.0001483,2]
[383632879,1757051448480,-480.0,0.0001483,2]
[383632881,1757051448491,-480.0,0.0001483,2]
[383632883,1757051448500,-480.0,0.0001483,2]
[383632885,1757051448509,-205.59243111,0.0001483,2]
[383632887,1757051448519,-480.0,0.0001483,2]
[383632889,1757051448528,-480.0,0.0001483,2]
[383632891,1757051448538,-480.0,0.0001483,2]
[383632894,1757051448547,-480.0,0.0001483,2]
[383632896,1757051448556,-480.0,0.0001483,2]
[383632898,1757051448566,-480.0,0.0001483,2]
[383632900,1757051448576,-483.26306616,0.0001483,2]
[383632902,1757051448585,-480.0,0.0001483,2]
[383632904,1757051448595,-480.0,0.0001483,2]
[383632906,1757051448604,-480.0,0.0001483,2]
[383632908,1757051448613,-625.48,0.0001483,2]
[383632910,1757051448622,-480.0,0.0001483,2]
[383632912,1757051448631,-480.0,0.0001483,2]
[383632914,1757051448640,-480.0,0.0001483,2]
[383632916,1757051448650,-430.49585533,0.0001483,2]
[383632918,1757051448659,-480.0,0.0001483,2]
[383632920,1757051448668,-490.59583654,0.0001483,2]
[383632921,1757051448677,-480.0,0.0001483,2]
[383632924,1757051448686,-480.0,0.0001483,2]
[383632926,1757051448696,-480.0,0.0001483,2]
[383632928,1757051448705,-566.75802029,0.0001483,2]
[383632930,1757051448715,-489.30655497,0.0001483,2]
[383632931,1757051448724,-210.84646307,0.0001483,2]
[383632934,1757051448734,-480.0,0.0001483,2]
[383632936,1757051448744,-636.26,0.0001483,2]
[383632937,1757051448753,-151.0,0.00014831,2]
[383632940,1757051448763,-636.26,0.00014831,2]
[383632942,1757051448773,-480.0,0.00014832,2]
[383632944,1757051448783,-168.0,0.00014843,2]
[383632945,1757051448792,-581.01585484,0.00014873,2]
[383632947,1757051448802,-216.836,0.00014973,2]
[383632950,1757051448812,-3391.52007242,0.00015,5]
[383632952,1757051448821,-168.0,0.00015002,2]
[383632954,1757051448831,-439.1054816,0.0001503,2]
[383632956,1757051448840,-202.06482304,0.00015034,2]
[383632958,1757051448850,-807.45103288,0.00015034,2]
[383632960,1757051448859,-168.0,0.00015067,2]
[383632962,1757051448868,-1011.56895741,0.00015068,2]
[383632964,1757051448877,-157.0,0.00015071,2]
[383632966,1757051448886,-157.0,0.00015071,2]
[383632978,1757051448995,-157.0,0.00015071,2]
[383632981,1757051449009,-208.62945033,0.00015071,2]
[383632983,1757051449019,-500.0,0.00015071,2]
[383632985,1757051449029,-500.0,0.00015071,2]
[383632987,1757051449038,-157.0,0.00015071,2]
[383632989,1757051449048,-157.0,0.00015071,2]
[383632991,1757051449057,-157.0,0.00015071,2]
[383632993,1757051449067,-157.0,0.00015071,2]
[383632995,1757051449076,-500.0,0.00015071,2]
[383632997,1757051449087,-157.0,0.00015071,2]
[383632999,1757051449096,-500.0,0.00015071,2]
[383633001,1757051449106,-195.93,0.00015071,2]
[383633003,1757051449115,-187.67260504,0.00015071,2]
[383633005,1757051449125,-480.0,0.00015094,2]
[383633007,1757051449135,-699.89,0.00015094,2]
[383633009,1757051449144,-1087.72,0.00015094,2]
[383633011,1757051449153,-1557.73,0.00015094,2]
[383633013,1757051449163,-1160.68,0.00015094,2]
[383633014,1757051449172,-480.0,0.00015094,2]
[383633016,1757051449182,-888.7,0.00015094,2]
[383633018,1757051449191,-548.1,0.00015094,2]
[383633020,1757051449201,-480.0,0.00015094,2]
[383633022,1757051449210,-480.0,0.00015094,2]
[383633024,1757051449220,-480.0,0.00015094,2]
[383633026,1757051449230,-480.0,0.00015094,2]
[383633028,1757051449239,-521.97,0.00015094,2]
[383633030,1757051449249,-480.0,0.00015094,2]
[383633032,1757051449259,-511.0,0.00015094,2]
[383633034,1757051449268,-480.0,0.00015094,2]
[383633036,1757051449277,-480.0,0.00015094,2]
[383633038,1757051449286,-480.0,0.00015094,2]
[383633040,1757051449295,-480.0,0.00015094,2]
[383633042,1757051449305,-480.0,0.00015094,2]
[383633044,1757051449314,-915.33,0.00015094,2]
[383633046,1757051449323,-480.0,0.00015094,2]
[383633048,1757051449332,-1060.52,0.00015094,2]
[383633050,1757051449341,-662.02,0.00015094,2]
[383633051,1757051449351,-565.9,0.00015094,2]
[383633053,1757051449360,-673.27,0.00015094,2]
[383633055,1757051449370,-1946.66,0.00015094,2]
[383633057,1757051449379,-480.0,0.00015094,2]
[383633059,1757051449388,-487.88,0.00015094,2]
[383633061,1757051449398,-542.74,0.00015094,2]
[383633064,1757051449411,-480.0,0.00015094,2]
[383633066,1757051449420,-480.0,0.00015094,2]
[383633068,1757051449430,-480.0,0.00015094,2]
[383633069,1757051449439,-480.0,0.00015094,2]
[383633071,1757051449448,-710.79,0.00015094,2]
[383633074,1757051449458,-513.51613958,0.00015095,2]
[383633075,1757051449467,-325.78772746,0.00015095,2]
[383633078,1757051449476,-480.0,0.00015095,2]
[383633080,1757051449486,-480.0,0.00015095,2]
[383633081,1757051449495,-480.0,0.00015095,2]
[383633083,1757051449504,-480.0,0.00015095,2]
[383633085,1757051449514,-480.0,0.00015095,2]
[383633087,1757051449523,-480.0,0.00015095,2]
[383633089,1757051449532,-480.0,0.00015095,2]
[383633091,1757051449541,-480.0,0.00015095,2]
[383633093,1757051449550,-480.0,0.00015095,2]
[383633095,1757051449560,-480.0,0.00015095,2]
[383633097,1757051449569,-480.0,0.00015095,2]
[383633099,1757051449579,-240.13459088,0.00015095,2]
[383633101,1757051449588,-480.0,0.00015095,2]
[383633103,1757051449596,-480.0,0.00015095,2]
[383633105,1757051449605,-480.0,0.00015095,2]
[383633107,1757051449615,-480.0,0.00015095,2]
[383633109,1757051449624,-480.0,0.00015095,2]
[383633111,1757051449633,-480.0,0.00015095,2]
[383633113,1757051449642,-480.0,0.00015095,2]
[383633115,1757051449651,-480.0,0.00015095,2]
[383633117,1757051449661,-517.94,0.00015095,2]
[383633119,1757051449670,-480.0,0.00015095,2]
[383633122,1757051449680,-480.0,0.00015095,2]
[383633123,1757051449689,-480.0,0.00015095,2]
[383633125,1757051449698,-480.0,0.00015095,2]
[383633128,1757051449708,-480.0,0.00015095,2]
[383633130,1757051449718,-3182.97,0.00015095,2]
[383633132,1757051449727,-480.0,0.00015095,2]
[383633134,1757051449736,-480.0,0.00015095,2]
[383633136,1757051449745,-576.47,0.00015095,2]
[383633138,1757051449755,-480.0,0.00015095,2]
[383633140,1757051449765,-480.0,0.00015095,2]
[383633142,1757051449774,-480.0,0.00015095,2]
[383633144,1757051449782,-480.0,0.00015095,2]
[383633146,1757051449791,-773.89,0.00015095,2]
[383633148,1757051449800,-1543.61,0.00015095,2]
[383633150,1757051449809,-2371.1,0.00015095,2]
[383633152,1757051449819,-894.17,0.00015095,2]
[383633154,1757051449828,-480.0,0.00015095,2]
[383633156,1757051449837,-429.88959221,0.00015095,2]
[383633158,1757051449846,-5518.58,0.00015095,2]
[383633160,1757051449856,-780.12,0.00015095,2]
[383633162,1757051449865,-2655.15,0.00015095,2]
[383633164,1757051449873,-480.0,0.00015095,2]
[383633166,1757051449882,-592.35,0.00015095,2]
[383633168,1757051449892,-118.97583054,0.00015095,2]
[383633205,1757051450231,-519.48394604,0.00013859,2]
[383633217,1757051450352,-781.63025538,0.00013859,2]
[383633219,1757051450362,-636.26,0.00014831,2]
[383633221,1757051450372,-636.26,0.00014831,2]
[383633223,1757051450381,-636.26,0.00014831,2]
[383633225,1757051450390,-636.35046686,0.00014831,2]
[383633227,1757051450401,-1091.16416946,0.00015095,2]
[383633229,1757051450412,-480.0,0.00015095,2]
[383633231,1757051450422,-480.0,0.00015095,2]
[383633232,1757051450431,-1154.8,0.00015095,2]
[383633234,1757051450441,-480.0,0.00015095,2]
[383633236,1757051450451,-480.0,0.00015095,2]
[383633238,1757051450460,-480.0,0.00015095,2]
[383633240,1757051450470,-724.76,0.00015103,2]
[383633242,1757051450483,-1760.72,0.00015103,2]
[383633244,1757051450492,-480.0,0.00015103,2]
[383633246,1757051450502,-1169.84,0.00015103,2]
[383633248,1757051450511,-480.0,0.00015104,2]
[383633250,1757051450520,-480.0,0.00015104,2]
[383633252,1757051450530,-480.0,0.00015104,2]
[383633254,1757051450539,-480.0,0.00015104,2]
[383633256,1757051450548,-480.0,0.00015104,2]
[383633258,1757051450558,-480.0,0.00015104,2]
[383633260,1757051450568,-480.0,0.00015104,2]
[383633262,1757051450577,-189.89518667,0.00015104,2]
[383633264,1757051450586,-480.0,0.00015104,2]
[383633266,1757051450595,-480.0,0.00015104,2]
[383633268,1757051450604,-1390.56,0.00015104,2]
[383633269,1757051450613,-480.0,0.00015104,2]
[383633271,1757051450623,-480.0,0.00015104,2]
[383633273,1757051450632,-480.0,0.00015104,2]
[383633275,1757051450641,-570.06,0.00015104,2]
[383633277,1757051450651,-480.0,0.00015104,2]
[383633279,1757051450660,-480.0,0.00015104,2]
[383633281,1757051450669,-480.0,0.00015104,2]
[383633283,1757051450679,-480.0,0.00015104,2]
[383633285,1757051450688,-480.0,0.00015104,2]
[383633287,1757051450696,-480.0,0.00015104,2]
[383633289,1757051450706,-480.0,0.00015104,2]
[383633291,1757051450715,-480.0,0.00015104,2]
[383633293,1757051450724,-480.0,0.00015104,2]
[383633295,1757051450733,-480.0,0.00015104,2]
[383633297,1757051450743,-480.0,0.00015104,2]
[383633299,1757051450752,-480.0,0.00015104,2]
[383633301,1757051450762,-480.0,0.00015104,2]
[383633302,1757051450771,-480.0,0.00015104,2]
[383633304,1757051450780,-283.29976278,0.00015104,2]
[383633306,1757051450790,-480.0,0.00015104,2]
[383633308,1757051450799,-318.3,0.00015104,2]
[383633310,1757051450808,-480.0,0.00015104,2]
[383633312,1757051450818,-517.3888015,0.00015104,2]
[383633314,1757051450827,-480.0,0.00015104,2]
[383633316,1757051450836,-480.0,0.00015104,2]
[383633318,1757051450845,-480.0,0.00015104,2]
[383633320,1757051450855,-480.0,0.00015104,2]
[383633322,1757051450864,-480.0,0.00015104,2]
[383633324,1757051450873,-480.0,0.00015104,2]
[383633326,1757051450882,-482.59341323,0.00015104,2]
[383633328,1757051450891,-480.0,0.00015104,2]
[383633330,1757051450901,-480.0,0.00015104,2]
[383633332,1757051450910,-480.0,0.00015104,2]
[383633333,1757051450919,-480.0,0.00015106,2]
[383633335,1757051450928,-1000.0,0.00015121,2]
[383633337,1757051450937,-168.0,0.00015155,2]
[383633339,1757051450946,-262.93509209,0.00015208,2]
[383633341,1757051450956,-420.0,0.00015307,2]
[383633343,1757051450965,-157.0,0.00015345,2]
[383633345,1757051450975,-187.88739911,0.00015345,2]
[383633347,1757051450984,-157.0,0.00015345,2]
[383633349,1757051450993,-500.0,0.00015345,2]
[383633351,1757051451003,-500.0,0.00015345,2]
[383633362,1757051451108,-164.39719745,0.00015345,2]
[383633364,1757051451118,-157.0,0.00015345,2]
[383633366,1757051451127,-186.0,0.00015345,2]
[383633368,1757051451137,-171.51658264,0.00015345,2]
[383633370,1757051451147,-500.0,0.00015345,2]
[383633372,1757051451157,-157.0,0.00015345,2]
[383633374,1757051451166,-634.24996487,0.00015345,2]
[383633375,1757051451176,-480.0,0.00015368,2]
[383633377,1757051451185,-699.89,0.00015368,2]
[383633379,1757051451195,-1160.68,0.00015368,2]
[383633381,1757051451205,-480.0,0.00015368,2]
[383633383,1757051451214,-888.7,0.00015368,2]
[383633385,1757051451224,-548.1,0.00015368,2]
[383633387,1757051451234,-480.0,0.00015368,2]
[383633389,1757051451243,-480.0,0.00015368,2]
[383633391,1757051451252,-480.0,0.00015368,2]
[383633393,1757051451262,-480.0,0.00015368,2]
[383633395,1757051451272,-521.97,0.00015368,2]
[383633397,1757051451281,-480.0,0.00015368,2]
[383633399,1757051451291,-511.0,0.00015368,2]
[383633401,1757051451300,-480.0,0.00015368,2]
[383633402,1757051451309,-480.0,0.00015368,2]
[383633404,1757051451319,-480.0,0.00015368,2]
[383633406,1757051451328,-480.0,0.00015368,2]
[383633408,1757051451338,-480.0,0.00015368,2]
[383633410,1757051451347,-915.33,0.00015368,2]
[383633412,1757051451357,-480.0,0.00015368,2]
[383633414,1757051451366,-1060.52,0.00015368,2]
[383633416,1757051451375,-662.02,0.00015368,2]
[383633418,1757051451384,-565.9,0.00015368,2]
[383633420,1757051451394,-673.27,0.00015368,2]
[383633422,1757051451407,-944.32156096,0.00015368,2]
[383633462,1757051451807,-1002.33843904,0.00015368,2]
[383633464,1757051451818,-301.96757579,0.00015368,2]
[383633467,1757051451832,-178.03242421,0.00015368,2]
[383633469,1757051451842,-487.88,0.00015368,2]
[383633471,1757051451851,-449.8017942,0.00015368,2]
[383635287,1757051681452,300.0,0.00013581,2]
[383635288,1757051690221,300.0,0.00013581,2]
[383635289,1757051751845,10000.0,0.00012935,2]
[383635361,1757052632768,-592.389954,0.00013699,2]
[383635363,1757052632783,-697.83821726,0.00013798,2]
[383635365,1757052632794,-2752.78168787,0.00013835,2]
[383635367,1757052632803,-697.83821725,0.00013867,2]
[383635369,1757052632815,-500.0,0.00013873,2]
[383635371,1757052632826,-424.81967186,0.00013873,2]
[383635373,1757052632835,-501.13816521,0.00013873,2]
[383635375,1757052632845,-300.0,0.00013894,2]
[383635377,1757052632855,-730.0,0.00013894,2]
[383635379,1757052632865,-1200.0,0.00013895,2]
[383635381,1757052632875,-480.0,0.00013895,2]
[383635383,1757052632884,-480.0,0.00013895,2]
[383635385,1757052632894,-1872.38,0.00013895,2]
[383635387,1757052632903,-480.0,0.00013895,2]
[383635389,1757052632913,-480.0,0.00013895,2]
[383635391,1757052632922,-487.78,0.00013895,2]
[383635393,1757052632932,-712.06,0.00013895,2]
[383635395,1757052632942,-480.0,0.00013895,2]
[383635397,1757052632952,-480.0,0.00013896,2]
[383635399,1757052632962,-1563.31,0.00013896,2]
[383635401,1757052632972,-1117.86,0.00013896,2]
[383635403,1757052632983,-480.0,0.00013896,2]
[383635405,1757052632993,-855.77,0.00013896,2]
[383635407,1757052633002,-527.43,0.00013896,2]
[383635409,1757052633012,-480.0,0.00013896,2]
[383635411,1757052633022,-480.0,0.00013896,2]
[383635413,1757052633032,-176.9869507,0.00013896,2]
[383635441,1757052635914,480.0,0.0002941,60]
[383635479,1757052638745,-303.0130493,0.00013896,2]
[383635481,1757052638755,-480.0,0.00013896,2]
[383635483,1757052638765,-480.0,0.00013896,2]
[383635485,1757052638777,-480.0,0.00013896,2]
[383635487,1757052638787,-501.21,0.00013896,2]
[383635489,1757052638796,-492.61,0.00013896,2]
[383635491,1757052638806,-480.0,0.00013896,2]
[383635493,1757052638816,-480.0,0.00013896,2]
[383635495,1757052638827,-480.0,0.00013896,2]
[383635497,1757052638835,-480.0,0.00013896,2]
[383635498,1757052638845,-480.0,0.00013896,2]
[383635501,1757052638858,-299.87261624,0.00013896,2]
[383635503,1757052638867,-500.0,0.00013896,2]
[383635504,1757052638876,-197.87689736,0.00013896,2]
[383635507,1757052638886,-500.0,0.00013896,2]
[383635508,1757052638895,-500.0,0.00013896,2]
[383635510,1757052638905,-227.62917887,0.00013896,2]
[383635511,1757052638915,-275.63046183,0.00013896,2]
[383635512,1757052638924,-480.0,0.00013896,2]
[383635513,1757052638933,-480.0,0.00013896,2]
[383635514,1757052638943,-480.0,0.00013896,2]
[383635515,1757052638952,-480.0,0.00013896,2]
[383635516,1757052638961,-635.93,0.00013896,2]
[383635517,1757052638971,-879.6,0.00013896,2]
[383635518,1757052638980,-480.0,0.00013896,2]
[383635519,1757052638990,-544.37,0.00013896,2]
[383635520,1757052638999,-1020.17,0.00013896,2]
[383635521,1757052639009,-646.75,0.00013896,2]
[383635522,1757052639019,-480.0,0.00013896,2]
[383635523,1757052639028,-480.0,0.00013896,2]
[383635524,1757052639038,-480.0,0.00013896,2]
[383635525,1757052639047,-480.0,0.00013896,2]
[383635526,1757052639056,-480.0,0.00013896,2]
[383635527,1757052639065,-480.0,0.00013896,2]
[383635528,1757052639082,-480.0,0.00013896,2]
[383635529,1757052639093,-524.19,0.00013896,2]
[383635530,1757052639102,-480.0,0.00013896,2]
[383635531,1757052639111,-540.17,0.00013896,2]
[383635532,1757052639128,-480.0,0.00013896,2]
[383635533,1757052639140,-480.0,0.00013896,2]
[383635534,1757052639149,-480.0,0.00013896,2]
[383635535,1757052639159,-480.0,0.00013896,2]
[383635536,1757052639169,-1089.44,0.00013896,2]
[383635537,1757052639179,-1498.17,0.00013896,2]
[383635538,1757052639188,-480.0,0.00013896,2]
[383635539,1757052639198,-3222.57,0.00013896,2]
[383635540,1757052639208,-490.4331105,0.00013897,2]
[383635541,1757052639217,-480.0,0.00013897,2]
[383635542,1757052639227,-237.67976642,0.00013897,2]
[383635543,1757052639237,-341.6,0.00013897,2]
[383635544,1757052639246,-480.0,0.00013897,2]
[383635545,1757052639256,-480.0,0.00013897,2]
[383635546,1757052639265,-480.0,0.00013897,2]
[383635547,1757052639275,-480.0,0.00013897,2]
[383635548,1757052639284,-480.0,0.00013897,2]
[383635549,1757052639294,-480.0,0.00013897,2]
[383635550,1757052639303,-155.25677816,0.00013897,2]
[383635551,1757052639313,-480.0,0.00013897,2]
[383635552,1757052639322,-480.0,0.00013897,2]
[383635553,1757052639332,-500.34,0.00013897,2]
[383635554,1757052639344,-641.57,0.00013897,2]
[383635555,1757052639353,-480.0,0.00013897,2]
[383635556,1757052639362,-542.74,0.00013897,2]
[383635557,1757052639372,-480.0,0.00013897,2]
[383635558,1757052639381,-480.0,0.00013897,2]
[383635559,1757052639391,-480.0,0.00013897,2]
[383635560,1757052639401,-480.0,0.00013897,2]
[383635561,1757052639411,-480.0,0.00013897,2]
[383635562,1757052639420,-480.0,0.00013897,2]
[383635563,1757052639430,-480.0,0.00013897,2]
[383635564,1757052639440,-480.0,0.00013897,2]
[383635565,1757052639450,-480.0,0.00013897,2]
[383635566,1757052639459,-480.0,0.00013897,2]
[383635567,1757052639468,-480.0,0.00013897,2]
[383635568,1757052639478,-480.0,0.00013897,2]
[383635569,1757052639488,-480.0,0.00013897,2]
[383635570,1757052639498,-480.0,0.00013897,2]
[383635571,1757052639507,-622.4,0.00013897,2]
[383635572,1757052639517,-480.0,0.00013897,2]
[383635573,1757052639526,-480.0,0.00013897,2]
[383635574,1757052639536,-480.0,0.00013897,2]
[383635575,1757052639546,-480.0,0.00013897,2]
[383635576,1757052639555,-480.0,0.00013897,2]
[383635577,1757052639704,-315.31,0.00013897,2]
[383635578,1757052639715,-480.0,0.00013897,2]
[383635579,1757052639725,-480.0,0.00013897,2]
[383635580,1757052639734,-480.0,0.00013897,2]
[383635581,1757052639743,-480.0,0.00013897,2]
[383635582,1757052639753,-178.77385513,0.00013897,2]
[383635583,1757052639762,-480.0,0.00013897,2]
[383635584,1757052639771,-480.0,0.00013897,2]
[383635585,1757052639785,-480.0,0.00013897,2]
[383635586,1757052639794,-480.0,0.00013897,2]
[383635587,1757052639803,-480.0,0.00013897,2]
[383635588,1757052639813,-480.0,0.00013897,2]
[383635589,1757052639822,-480.0,0.00013897,2]
[383635590,1757052639831,-480.0,0.00013897,2]
[383635591,1757052639843,-480.0,0.00013897,2]
[383635592,1757052639852,-480.0,0.00013897,2]
[383635593,1757052639861,-480.0,0.00013897,2]
[383635594,1757052639870,-484.25911302,0.00013897,2]
[383635595,1757052639880,-480.0,0.00013897,2]
[383635596,1757052639889,-480.0,0.00013897,2]
[383635597,1757052639898,-480.0,0.00013897,2]
[383635598,1757052639908,-500.0,0.00013897,2]
[383635599,1757052639918,-284.49760409,0.00013897,2]
[383635600,1757052639928,-480.0,0.00013897,2]
[383635601,1757052639937,-480.0,0.00013897,2]
[383635602,1757052639947,-480.0,0.00013897,2]
[383635603,1757052639956,-483.70607168,0.00013897,2]
[383635604,1757052639966,-480.0,0.00013897,2]
[383635605,1757052639975,-480.0,0.00013897,2]
[383635606,1757052639988,-480.0,0.00013897,2]
[383635607,1757052639998,-480.0,0.00013897,2]
[383635608,1757052640007,-480.0,0.00013897,2]
[383635609,1757052640017,-480.0,0.00013897,2]
[383635610,1757052640026,-480.0,0.00013897,2]
[383635611,1757052640035,-480.0,0.00013897,2]
[383635612,1757052640045,-491.57811052,0.00013897,2]
[383635613,1757052640055,-480.0,0.00013897,2]
[383635614,1757052640064,-480.0,0.00013897,2]
[383635615,1757052640074,-480.0,0.00013897,2]
[383635616,1757052640083,-480.0,0.00013897,2]
[383635617,1757052640094,-548.62,0.00013897,2]
[383635618,1757052640103,-480.0,0.00013897,2]
[383635619,1757052640113,-480.0,0.00013897,2]
[383635620,1757052640122,-480.0,0.00013897,2]
[383635621,1757052640132,-480.0,0.00013897,2]
[383635622,1757052640141,-480.0,0.00013897,2]
[383635623,1757052640151,-481.77535468,0.00013897,2]
[383635624,1757052640160,-480.0,0.00013897,2]
[383635625,1757052640169,-482.0053665,0.00013897,2]
[383635626,1757052640179,-480.0,0.00013897,2]
[383635627,1757052640188,-480.0,0.00013897,2]
[383635628,1757052640198,-480.0,0.00013897,2]
[383635629,1757052640207,-480.0,0.00013897,2]
[383635630,1757052640217,-480.0,0.00013897,2]
[383635631,1757052640226,-480.0,0.00013897,2]
[383635632,1757052640236,-480.0,0.00013897,2]
[383635633,1757052640245,-480.0,0.00013897,2]
[383635634,1757052640253,-623.76,0.00013897,2]
[383635635,1757052640261,-483.19625541,0.00013897,2]
[383635636,1757052640270,-1615.43,0.00013897,2]
[383635637,1757052640279,-480.0,0.00013897,2]
[383635638,1757052640288,-480.0,0.00013897,2]